lending/lending_fUSD_20251018
["ID","MTS","AMOUNT","RATE_DAILY","PERIOD"]
[391770197,1760791853130,-151.0,0.00027397,7]
[391770198,1760791853139,-152.103103,0.00027397,7]
[391770199,1760791853149,-150.0,0.00027397,7]
[391770200,1760791853158,-151.0,0.00027397,7]
[391770201,1760791853168,-151.0,0.00027397,7]
[391770202,1760791853177,-151.0,0.00027397,7]
[391770203,1760791853187,-151.0,0.00027397,7]
[391770204,1760791853196,-151.0,0.00027397,7]
[391770205,1760791853205,-151.0,0.00027397,7]
[391770206,1760791853215,-151.0,0.00027397,7]
[391770207,1760791853224,-151.0,0.00027397,7]
[391770208,1760791853233,-282.350733,0.00027397,7]
[391770209,1760791853243,-152.005589,0.00027397,7]
[391770210,1760791853252,-151.0,0.00027397,7]
[391770211,1760791853262,-151.0,0.00027397,7]
[391770212,1760791853271,-151.0,0.00027397,7]
[391770213,1760791853281,-151.0,0.00027397,7]
[391770214,1760791853290,-151.0,0.00027397,7]
[391770215,1760791853299,-152.124514,0.00027397,7]
[391770216,1760791853309,-151.0,0.00027397,7]
[391770217,1760791853318,-151.0,0.00027397,7]
[391770218,1760791853328,-239.672478,0.00027397,7]
[391770219,1760791853337,-151.0,0.00027397,7]
[391770220,1760791853346,-151.0,0.00027397,7]
[391770221,1760791853355,-151.494731,0.00027397,7]
[391770222,1760791853364,-336.77,0.00027397,2]
[391770223,1760791853373,-151.0,0.00027397,7]
[391770224,1760791853383,-151.0,0.00027397,7]
[391770225,1760791853525,-151.00000027,0.00027397,7]
[391770226,1760791853535,-949.74,0.000274,2]
[391770227,1760791853544,-209.18520318,0.00027425,7]
[391770228,1760791853554,-500.0,0.00027425,7]
[391770229,1760791853564,-155.62063674,0.00027452,7]
[391770230,1760791853573,-500.0,0.0002748,7]
[391770231,1760791853582,-539.0,0.00027535,7]
[391770232,1760791853592,-298.26089446,0.00027583,2]
[391770233,1760791853604,-166.66,0.0002763,30]
[391770234,1760791853614,-300.0,0.00027669,2]
[391770235,1760791853623,-336.77,0.00027671,7]
[391770236,1760791853633,-4896.41705545,0.0002774,2]
[391770237,1760791853642,-4213.42595432,0.0002775,2]
[391770238,1760791853651,-1000.0,0.00027821,2]
[391770239,1760791853661,-501.72165447,0.00027821,5]
[391770240,1760791853670,-514.7878938,0.00027821,5]
[391770241,1760791853680,-4896.41705545,0.00027909,2]
[391770242,1760791853689,-336.77,0.00027945,7]
[391770243,1760791853698,-7236.28571353,0.00027946,2]
[391770244,1760791853708,-300.0,0.00028,120]
[391770245,1760791853717,-166.66,0.00028167,30]
[391770246,1760791853727,-1006.0,0.00028183,10]
[391770247,1760791853736,-336.77,0.00028219,7]
[391770248,1760791853745,-737.91,0.00028257,2]
[391770249,1760791853755,-4896.41705545,0.0002832,2]
[391770250,1760791853764,-5844.64361552,0.0002833,2]
[391770251,1760791853774,-4213.42595432,0.0002834,2]
[391770252,1760791853783,-1500.0,0.00028368,2]
[391770253,1760791853793,-4896.41705545,0.00028439,2]
[391770254,1760791853802,-150.0,0.00028444,5]
[391770255,1760791853811,-500.0,0.00028459,2]
[391770256,1760791853821,-500.0,0.00028459,2]
[391770257,1760791853831,-500.0,0.00028459,2]
[391770258,1760791853840,-500.0,0.00028459,2]
[391770259,1760791853850,-514.86975426,0.00028459,2]
[391770260,1760791853860,-546.76,0.00028474,2]
[391770261,1760791853869,-352.18,0.00028474,2]
[391770262,1760791853879,-336.79,0.00028493,7]
[391770263,1760791853889,-4158.5476465,0.00028583,2]
[391770264,1760791854079,-271.53759989,0.00028583,2]
[391770265,1760791854092,-1414.55836913,0.00028583,2]
[391770266,1760791854103,-1058.04113965,0.00028593,2]
[391770267,1760791854223,-400.929974,0.00025786,7]
[391770268,1760791854232,-231.83476251,0.00025786,7]
[391770269,1760791854251,-475.74147678,0.00022628,2]
[391770270,1760791854260,-169.09521149,0.00025786,7]
[391770271,1760791854270,-400.929974,0.00025786,7]
[391770272,1760791854280,-400.929974,0.00025786,7]
[391770273,1760791854290,-400.929974,0.00026441,7]
[391770274,1760791854300,-371.62945614,0.00026441,7]
[391770275,1760791854312,-29.30051786,0.00026441,7]
[391770276,1760791854322,-400.929974,0.00027251,7]
[391770277,1760791854331,-115.80757405,0.00027251,7]
[391770278,1760791854343,-285.12239595,0.00027251,7]
[391770279,1760791854353,-150.0,0.00027261,7]
[391770280,1760791854367,-213.60767356,0.00027371,7]
[391770281,1760791854376,-3838.3759158,0.00028593,2]
[391770282,1760791854386,-7236.28571353,0.00028699,2]
[391770283,1760791854395,-4896.41705545,0.0002876,2]
[391770284,1760791854405,-5844.64361552,0.0002876,2]
[391770285,1760791854414,-4896.41705545,0.0002877,2]
[391770286,1760791854424,-5844.64361552,0.0002877,2]
[391770287,1760791854434,-324.1640668,0.0002878,2]
[391770288,1760791854443,-6610.46399001,0.0002878,2]
[391770289,1760791854460,-3330.36216,0.0002878,2]
[391770290,1760791854471,-4748.42501629,0.0002878,2]
[391770291,1760791854482,-11689.287231,0.0002878,2]
[391770292,1760791854492,-19585.6682218,0.0002879,2]
[391770293,1760791854502,-6141.38102118,0.0002879,2]
[391770294,1760791854513,-11392.54982542,0.0002879,2]
[391770295,1760791854523,-160.09804275,0.0002879,2]
[391770296,1760791854533,-13300.0,0.000288,31]
[391770297,1760791854542,-1130.29543671,0.000288,10]
[391770298,1760791854553,-8995.9013872,0.000288,10]
[391770299,1760791854564,-19985.72761208,0.000288,10]
[391770300,1760791854573,-500.0,0.000288,10]
[391770301,1760791854583,-5844.64361552,0.00028837,2]
[391770302,1760791854592,-4896.41705545,0.00028848,2]
[391770303,1760791854601,-4896.41705545,0.00028868,2]
[391770304,1760791854611,-5844.64361552,0.00028868,2]
[391770305,1760791854620,-9792.8341109,0.00028878,2]
[391770306,1760791854630,-5844.64361552,0.00028878,2]
[391770307,1760791854639,-16506.76286703,0.00028888,2]
[391770308,1760791854648,-5844.64361552,0.00028899,2]
[391770309,1760791854657,-1000.0,0.000289,10]
[391770310,1760791854666,-3986.76683706,0.00028909,2]
[391770311,1760791854677,-909.65021839,0.00028909,2]
[391770312,1760791854686,-1014.22318804,0.00028916,2]
[391770313,1760791854699,-2944.02041117,0.0002892,2]
[391770314,1760791854718,-2900.62320435,0.0002892,2]
[391770315,1760791854731,-4213.42595432,0.00028929,2]
[391770316,1760791854743,-4896.41705545,0.00028931,2]
[391770317,1760791854755,-4896.41705545,0.0002894,2]
[391770318,1760791854768,-5844.64361552,0.00028951,2]
[391770319,1760791854782,-309.29654756,0.00028952,2]
[391770320,1760791854796,-500.0,0.0002896,2]
[391770321,1760791854809,-500.0,0.0002896,2]
[391770322,1760791854824,-4896.41705545,0.0002896,2]
[391770323,1760791854837,-5844.64361552,0.00028963,2]
[391770324,1760791854848,-9792.8341109,0.0002897,2]
[391770325,1760791854860,-500.0,0.00028973,5]
[391770326,1760791854870,-11175.28178548,0.0002898,2]
[391770327,1760791854888,-5168.34568269,0.0002898,2]
[391770328,1760791867621,-195.0,0.0002754,120]
[391770388,1760792952737,-160.32094198,0.00017,2]
[391770389,1760792952764,-8.12844292,0.00017,2]
[391770390,1760792967697,-141.87155708,0.00017,2]
[391770391,1760792967727,-108.12844292,0.00017,2]
[391770392,1760793013073,-141.87155708,0.00017,2]
[391770393,1760793013095,-108.12844292,0.0001785,2]
[391770394,1760793024016,2228.0,0.00028767,120]
[391770399,1760793031879,-141.87155708,0.0001785,2]
[391770400,1760793031889,-1200.0,0.00018699,2]
[391770401,1760793031898,-195.0,0.000187,2]
[391770402,1760793031908,-250.0,0.000187,2]
[391770403,1760793031918,-150.85698122,0.000187,2]
[391770404,1760793031927,-300.0,0.00019,2]
[391770405,1760793031936,-300.0,0.00025643,2]
[391770406,1760793031946,-408.0,0.00025644,2]
[391770407,1760793031956,-1398.64,0.0002715,2]
[391770408,1760793031965,-5000.0,0.00027186,2]
[391770409,1760793031974,-154.82,0.00027192,30]
[391770410,1760793031984,-150.0,0.00027259,2]
[391770411,1760793031993,-500.0,0.0002726,2]
[391770412,1760793032003,-500.0,0.0002726,2]
[391770413,1760793032012,-500.0,0.0002726,2]
[391770414,1760793032021,-500.0,0.0002726,2]
[391770415,1760793032030,-200.0,0.00027292,2]
[391770416,1760793032039,-500.0,0.00027396,2]
[391770417,1760793032049,-500.0,0.00027396,2]
[391770418,1760793032059,-666.0,0.00027441,3]
[391770419,1760793032068,-9999.99,0.00027441,2]
[391770420,1760793032078,-2883.02664705,0.00027441,10]
[391770421,1760793032090,-5598.5513821,0.00027441,10]
[391770422,1760793032101,-345.51780687,0.00027441,10]
[391770423,1760793032204,-508.67861572,0.00027441,10]
[391770429,1760793037965,-23620.0,0.00027441,10]
[391770454,1760793039880,-2772.59554826,0.00027441,10]
[391770455,1760793039889,-150.99,0.00027441,2]
[391770456,1760793039899,-150.99,0.00027441,2]
[391770457,1760793039908,-106.6197755,0.00027591,2]
[391770458,1760793039988,-68.5102245,0.00027591,2]
[391770459,1760793039998,-1000.0,0.00027626,2]
[391770460,1760793040007,-300.0,0.00027639,2]
[391770461,1760793040016,-695.39,0.0002764,2]
[391770462,1760793040027,-80.72775011,0.00027686,2]
[391770463,1760793040038,-2000.0,0.00027686,2]
[391770464,1760793040048,-3670.10718,0.00027686,2]
[391770465,1760793040063,-1023.24592403,0.00027686,2]
[391770466,1760793040074,-1666.92887226,0.00027686,2]
[391770467,1760793040097,-1111.15813907,0.00027686,2]
[391770468,1760793040107,-277.35679052,0.00027686,2]
[391770469,1760793040115,-217.56045865,0.00027703,2]
[391770470,1760793040124,-305.73481347,0.00027703,2]
[391770471,1760793040135,-16.87588653,0.00027703,2]
[391770472,1760793040144,-815.82338872,0.00027703,2]
[391770473,1760793040154,-151.56674562,0.00027703,2]
[391770474,1760793040163,-151.0,0.00027703,2]
[391770475,1760793040172,-250.0,0.00027703,2]
[391770476,1760793040184,-200.0,0.00027703,2]
[391770477,1760793040194,-151.0,0.00027703,2]
[391770478,1760793040203,-151.0,0.00027703,2]
[391770479,1760793040212,-250.0,0.00027703,2]
[391770480,1760793040223,-151.0,0.00027703,2]
[391770481,1760793040235,-250.0,0.00027703,2]
[391770482,1760793040244,-151.0,0.00027703,2]
[391770483,1760793040253,-108.83397837,0.00027703,2]
[391770485,1760793040264,-91.16602163,0.00027703,2]
[391770486,1760793040274,-250.0,0.00027703,2]
[391770488,1760793040283,-250.0,0.00027703,2]
[391770490,1760793040292,-250.0,0.00027703,2]
[391770492,1760793040306,-250.0,0.00027703,2]
[391770494,1760793040315,-182.8403524,0.00027703,2]
[391770496,1760793040324,-1000.0,0.00027703,2]
[391770498,1760793040334,-1000.0,0.00027703,2]
[391770500,1760793040343,-1000.0,0.00027703,2]
[391770502,1760793040352,-1000.0,0.00027703,2]
[391770504,1760793040362,-1000.0,0.00027703,2]
[391770506,1760793040375,-1000.0,0.00027703,2]
[391770508,1760793040384,-1000.0,0.00027703,2]
[391770509,1760793040393,-185.63536261,0.00027703,2]
[391770510,1760793040403,-153.0,0.0002772,2]
[391770511,1760793040412,-153.0,0.0002772,2]
[391770512,1760793040421,-153.0,0.0002772,2]
[391770513,1760793040430,-153.0,0.0002772,2]
[391770514,1760793040439,-153.0,0.0002772,2]
[391770515,1760793040448,-153.0,0.0002772,2]
[391770516,1760793040457,-153.0,0.0002772,2]
[391770517,1760793040466,-153.0,0.0002772,2]
[391770518,1760793040476,-153.0,0.0002772,2]
[391770519,1760793040485,-153.0,0.0002772,2]
[391770520,1760793040494,-153.0,0.0002772,2]
[391770521,1760793040503,-153.0,0.0002772,2]
[391770522,1760793040512,-153.0,0.0002772,2]
[391770524,1760793040521,-153.0,0.0002772,2]
[391770526,1760793040530,-153.0,0.0002772,2]
[391770528,1760793040539,-153.0,0.0002772,2]
[391770530,1760793040548,-153.0,0.0002772,2]
[391770532,1760793040557,-153.0,0.0002772,2]
[391770534,1760793040565,-153.0,0.0002772,2]
[391770536,1760793040578,-153.0,0.0002772,2]
[391770538,1760793040587,-153.0,0.0002772,2]
[391770540,1760793040596,-153.0,0.0002772,2]
[391770542,1760793040605,-153.0,0.0002772,2]
[391770544,1760793040614,-153.0,0.0002772,2]
[391770546,1760793040623,-153.0,0.0002772,2]
[391770548,1760793040632,-153.0,0.0002772,2]
[391770550,1760793040641,-153.0,0.0002772,2]
[391770552,1760793040651,-153.0,0.0002772,2]
[391770554,1760793040660,-153.0,0.0002772,2]
[391770556,1760793040669,-153.0,0.0002772,2]
[391770558,1760793040679,-153.0,0.0002772,2]
[391770560,1760793040688,-153.0,0.0002772,2]
[391770562,1760793040697,-153.0,0.0002772,2]
[391770564,1760793040706,-153.0,0.0002772,2]
[391770566,1760793040715,-153.0,0.0002772,2]
[391770568,1760793040724,-153.0,0.0002772,2]
[391770570,1760793040733,-153.0,0.0002772,2]
[391770572,1760793040743,-153.0,0.0002772,2]
[391770574,1760793040752,-153.0,0.0002772,2]
[391770576,1760793040762,-153.0,0.0002772,2]
[391770578,1760793040771,-153.0,0.0002772,2]
[391770580,1760793040781,-153.0,0.0002772,2]
[391770582,1760793040790,-153.0,0.0002772,2]
[391770584,1760793040800,-153.0,0.0002772,2]
[391770586,1760793040809,-153.0,0.0002772,2]
[391770588,1760793040819,-153.0,0.0002772,2]
[391770590,1760793040828,-153.0,0.0002772,2]
[391770592,1760793040837,-153.0,0.0002772,2]
[391770594,1760793040846,-153.0,0.0002772,2]
[391770596,1760793040855,-153.0,0.0002772,2]
[391770598,1760793040864,-153.0,0.0002772,2]
[391770600,1760793040873,-153.0,0.0002772,2]
[391770602,1760793040882,-153.0,0.0002772,2]
[391770604,1760793040891,-153.0,0.0002772,2]
[391770606,1760793040902,-153.0,0.0002772,2]
[391770608,1760793040911,-153.0,0.0002772,2]
[391770610,1760793040920,-153.0,0.0002772,2]
[391770612,1760793040930,-153.0,0.0002772,2]
[391770614,1760793040939,-153.0,0.0002772,2]
[391770616,1760793040948,-153.0,0.0002772,2]
[391770618,1760793040960,-153.0,0.0002772,2]
[391770620,1760793040970,-153.0,0.0002772,2]
[391770622,1760793040979,-153.0,0.0002772,2]
[391770624,1760793040988,-153.0,0.0002772,2]
[391770626,1760793040997,-153.0,0.0002772,2]
[391770628,1760793041006,-153.0,0.0002772,2]
[391770630,1760793041021,-153.0,0.0002772,2]
[391770632,1760793041029,-153.0,0.0002772,2]
[391770634,1760793041037,-153.0,0.0002772,2]
[391770636,1760793041045,-153.0,0.0002772,2]
[391770638,1760793041053,-153.0,0.0002772,2]
[391770640,1760793041063,-153.0,0.0002772,2]
[391770642,1760793041072,-153.0,0.0002772,2]
[391770644,1760793041081,-153.0,0.0002772,2]
[391770646,1760793041091,-153.0,0.0002772,2]
[391770647,1760793041100,-153.0,0.0002772,2]
[391770649,1760793041109,-153.0,0.0002772,2]
[391770651,1760793041119,-153.0,0.0002772,2]
[391770654,1760793041128,-153.0,0.0002772,2]
[391770656,1760793041137,-153.0,0.0002772,2]
[391770658,1760793041147,-153.0,0.0002772,2]
[391770660,1760793041156,-153.0,0.0002772,2]
[391770662,1760793041166,-153.0,0.0002772,2]
[391770664,1760793041175,-153.0,0.0002772,2]
[391770666,1760793041184,-153.0,0.0002772,2]
[391770668,1760793041193,-153.0,0.0002772,2]
[391770670,1760793041203,-150.0,0.0002772,2]
[391770672,1760793041212,-150.0,0.0002772,2]
[391770674,1760793041221,-150.0,0.0002772,2]
[391770676,1760793041230,-4004.36857138,0.00027741,2]
[391770678,1760793041240,-160.11405256,0.00027741,2]
[391770680,1760793041250,-200.0,0.00027757,2]
[391770682,1760793041259,-626.401,0.00027757,17]
[391770684,1760793041268,-150.0,0.00027876,2]
[391770686,1760793041278,-150.0,0.00027988,2]
[391770688,1760793041287,-500.0,0.000282,5]
[391770690,1760793041296,-500.0,0.000282,5]
[391770692,1760793041307,-500.0,0.000282,2]
[391770694,1760793041320,-500.0,0.000282,5]
[391770696,1760793041330,-501.36215616,0.000282,5]
[391770698,1760793041339,-500.0,0.00028229,5]
[391770700,1760793041352,-2045.27507814,0.00028263,2]
[391770702,1760793041361,-336.48,0.00028461,2]
[391770704,1760793041370,-1658.83,0.00028461,2]
[391770706,1760793041380,-300.0,0.00028461,2]
[391770708,1760793041390,-352.18,0.00028461,2]
[391770710,1760793041399,-1119.30341,0.00028493,2]
[391770712,1760793041409,-500.0,0.00028494,2]
[391770714,1760793041418,-300.62,0.0002874,2]
[391770716,1760793041428,-177.32,0.0002874,2]
[391770718,1760793041437,-168.22,0.0002874,2]
[391770720,1760793041446,-307.3,0.0002874,2]
[391770722,1760793041455,-1092.4,0.0002874,2]
[391770724,1760793041464,-150.0,0.0002874,2]
[391770726,1760793041473,-3706.71220926,0.00028741,2]
[391770728,1760793041482,-200.0,0.00028748,2]
[391770730,1760793041491,-227.87873578,0.00028752,2]
[391770732,1760793041500,-500.0,0.0002878,2]
[391770734,1760793041510,-151.0,0.00028838,7]
[391770736,1760793041519,-70260.4156549,0.00028841,2]
[391770738,1760793041528,-487.49924768,0.00028841,2]
[391770740,1760793041537,-14962.1511525,0.00028842,2]
[391770742,1760793041546,-9940.4558835,0.00028842,2]
[391770744,1760793041555,-326.54244678,0.0002889,2]
[391770746,1760793041564,-3798.97319959,0.0002889,2]
[391770748,1760793041573,-500.0,0.0002896,2]
[391770750,1760793041583,-200.0,0.0002898,2]
[391770752,1760793041592,-429.08949793,0.0002898,2]
[391770754,1760793041601,-151.0,0.0002898,2]
[391770756,1760793041610,-151.0,0.0002898,2]
[391770758,1760793041619,-206.14849678,0.0002898,2]
[391770760,1760793041629,-2000.0,0.0002898,2]
[391770762,1760793041638,-200.0,0.0002898,2]
[391770764,1760793041647,-533.07876662,0.00028989,2]
[391770766,1760793041656,-512.25476611,0.00028989,2]
[391770768,1760793041665,-500.0,0.00028989,2]
[391770770,1760793041675,-500.0,0.00028989,2]
[391770772,1760793041683,-500.0,0.00028989,2]
[391770774,1760793041693,-500.0,0.00028989,2]
[391770776,1760793041702,-500.0,0.00028989,2]
[391770778,1760793041711,-500.0,0.00028989,2]
[391770780,1760793041719,-500.0,0.00028989,2]
[391770800,1760793041906,-500.0,0.00028989,2]
[391770802,1760793041915,-500.0,0.00028989,2]
[391770803,1760793041924,-500.0,0.00028989,2]
[391770805,1760793041933,-500.0,0.00028989,2]
[391770807,1760793041942,-500.0,0.00028989,2]
[391770809,1760793041952,-80738.57147046,0.0002899,14]
[391770835,1760793043035,-635.6914335,0.0002899,14]
[391770836,1760793043048,-37449.81244476,0.0002899,14]
[391770837,1760793043058,-152.883815,0.0002899,30]
[391770838,1760793043067,-151.0,0.0002899,30]
[391770839,1760793043076,-151.0,0.0002899,30]
[391770840,1760793043085,-151.0,0.0002899,30]
[391770841,1760793043095,-151.0,0.0002899,30]
[391770842,1760793043105,-151.0,0.0002899,30]
[391770843,1760793043116,-151.0,0.0002899,30]
[391770844,1760793043125,-151.0,0.0002899,30]
[391770845,1760793043136,-151.0,0.0002899,30]
[391770846,1760793043145,-154.39145,0.0002899,30]
[391770847,1760793043154,-151.0,0.0002899,30]
[391770848,1760793043166,-151.0,0.0002899,30]
[391770849,1760793043175,-151.0,0.0002899,30]
[391770850,1760793043184,-151.0,0.0002899,30]
[391770851,1760793043194,-151.0,0.0002899,30]
[391770853,1760793043203,-151.0,0.0002899,30]
[391770855,1760793043212,-151.0,0.0002899,30]
[391770857,1760793043221,-151.0,0.0002899,30]
[391770858,1760793043230,-158.5219,0.0002899,30]
[391770860,1760793043239,-341.42,0.00029,7]
[391770862,1760793043248,-275.25,0.00029,2]
[391770864,1760793043258,-598.82616356,0.00029,3]
[391770866,1760793043266,-15850.92644929,0.00029,2]
[391770868,1760793043276,-99940.0,0.00029,7]
[391770869,1760793043286,-300.0,0.00029039,2]
[391770871,1760793043295,-287.61899177,0.00029055,2]
[391770873,1760793043304,-150.0,0.00029145,7]
[391770875,1760793043313,-150.0,0.00029145,7]
[391770877,1760793043322,-150.0,0.00029145,7]
[391770879,1760793043331,-150.0,0.00029145,7]
[391770881,1760793043340,-150.0,0.00029145,7]
[391770883,1760793043349,-155.80232479,0.00029145,7]
[391770885,1760793043359,-153.17893229,0.00029145,7]
[391770886,1760793043368,-3706.71220925,0.00029155,2]
[391770888,1760793043377,-2590.0,0.00029232,2]
[391770890,1760793043387,-6446.0,0.00029232,2]
[391770892,1760793043396,-6437.0,0.00029232,2]
[391770894,1760793043405,-737.91,0.00029243,2]
[391770895,1760793043415,-200.0,0.0002927,2]
[391770896,1760793043424,-1217.9103761,0.0002927,2]
[391770897,1760793043433,-200.0,0.0002927,2]
[391770898,1760793043442,-3798.97319954,0.00029287,2]
[391770899,1760793043451,-150.62,0.00029288,2]
[391770900,1760793043460,-586.232,0.00029317,2]
[391770901,1760793043469,-5169.86725027,0.00029363,2]
[391770902,1760793043478,-326.54244678,0.00029401,2]
[391770903,1760793043487,-200.0,0.00029562,2]
[391770904,1760793043496,-3706.71220925,0.00029569,2]
[391770905,1760793043505,-3798.97319954,0.00029684,2]
[391770906,1760793043514,-695.39,0.00029699,2]
[391770907,1760793043523,-474.87,0.00029699,2]
[391770908,1760793043532,-474.87,0.00029699,2]
[391770909,1760793043542,-695.39,0.00029699,2]
[391770910,1760793043551,-474.87,0.00029699,2]
[391770911,1760793043560,-695.39,0.00029699,2]
[391770912,1760793043569,-695.39,0.00029699,2]
[391770913,1760793043578,-473.8,0.00029699,2]
[391770914,1760793043588,-695.39,0.00029699,2]
[391770915,1760793043597,-695.39,0.00029699,2]
[391770916,1760793043606,-151.0,0.00029699,30]
[391770917,1760793043615,-400.0,0.000297,10]
[391770918,1760793043625,-168.0,0.00029751,2]
[391770919,1760793043634,-150.0,0.00029793,7]
[391770920,1760793043644,-900.0,0.000298,10]
[391770921,1760793043653,-200.0,0.00029858,2]
[391770922,1760793043662,-151.0,0.0002989,30]
[391770923,1760793043671,-151.0,0.0002989,30]
[391770924,1760793043680,-169.72103147,0.000299,2]
[391770925,1760793043690,-1400.0,0.000299,10]
[391770926,1760793043699,-160.63425148,0.000299,2]
[391770927,1760793043708,-326.54244678,0.00029911,2]
[391770928,1760793043726,-150.0,0.00029955,7]
[391770929,1760793043736,-151.0,0.00029962,30]
[391770930,1760793043746,-151.0,0.00029962,30]
[391770931,1760793043756,-151.0,0.00029962,30]
[391770932,1760793043765,-151.0,0.00029962,30]
[391770933,1760793043775,-200.0,0.00029973,5]
[391770934,1760793043785,-28871.0,0.00029973,2]
[391770935,1760793043794,-166.789639,0.00029973,30]
[391770936,1760793043804,-151.0,0.00029973,30]
[391770937,1760793043813,-151.0,0.0002998,30]
[391770938,1760793043823,-3706.71220925,0.00029982,2]
[391770939,1760793043832,-500.0,0.00029989,2]
[391770940,1760793043841,-500.0,0.00029989,2]
[391770941,1760793043851,-500.0,0.00029989,2]
[391770942,1760793043860,-500.0,0.00029989,2]
[391770943,1760793043870,-504.8829033,0.00029989,2]
[391770944,1760793043879,-500.0,0.00029989,2]
[391770945,1760793043889,-151.0,0.00029989,30]
[391770946,1760793043899,-151.0,0.00029989,30]
[391770947,1760793043909,-151.0,0.00029989,30]
[391770948,1760793043918,-500.0,0.00029989,2]
[391770949,1760793043928,-500.0,0.00029989,2]
[391770950,1760793043937,-500.0,0.00029989,2]
[391770951,1760793043947,-500.0,0.00029989,2]
[391770952,1760793043956,-511.50302514,0.00029989,2]
[391770953,1760793043966,-500.0,0.00029989,2]
[391770954,1760793043975,-187.33685468,0.00029989,2]
[391770955,1760793043985,-500.0,0.00029989,2]
[391770956,1760793043994,-500.0,0.00029989,2]
[391770957,1760793044004,-290.67407581,0.00029989,2]
[391770958,1760793044013,-209.96604848,0.00029989,2]
[391770959,1760793044023,-219655.742971,0.0002999,2]
[391770960,1760793044032,-201.67462191,0.0002999,2]
[391770961,1760793044042,-150.14,0.0002999,2]
[391770962,1760793044052,-150.14,0.0002999,2]
[391770963,1760793044062,-150.14,0.0002999,2]
[391770964,1760793044075,-150.14,0.0002999,2]
[391770965,1760793044084,-150.14,0.0002999,2]
[391770966,1760793044093,-150.14,0.0002999,2]
[391770967,1760793044103,-150.14,0.0002999,2]
[391770968,1760793044112,-150.14,0.0002999,2]
[391770969,1760793044123,-150.0,0.00029999,2]
[391770970,1760793044132,-500.0,0.00029999,2]
[391770971,1760793044142,-300.0,0.00029999,10]
[391770972,1760793044152,-666.0,0.00029999,10]
[391770973,1760793044162,-500.0,0.00029999,2]
[391770974,1760793044172,-500.0,0.00029999,2]
[391770975,1760793044182,-500.0,0.00029999,2]
[391770976,1760793044191,-374.14,0.00029999,2]
[391770977,1760793044202,-3010.89777353,0.00029999,2]
[391770978,1760793044211,-500.0,0.00029999,2]
[391770979,1760793044220,-500.0,0.00029999,2]
[391770980,1760793044230,-503.35450178,0.00029999,2]
[391770981,1760793044239,-500.0,0.00029999,2]
[391770982,1760793044249,-500.0,0.00029999,2]
[391770983,1760793044258,-500.0,0.00029999,2]
[391770984,1760793044273,-500.0,0.00029999,2]
[391770985,1760793044287,-500.0,0.00029999,2]
[391770986,1760793044301,-500.0,0.00029999,2]
[391770987,1760793044319,-500.0,0.00029999,2]
[391770988,1760793044332,-500.0,0.00029999,2]
[391770989,1760793044343,-500.0,0.00029999,2]
[391770990,1760793044357,-500.0,0.00029999,2]
[391770991,1760793044369,-500.0,0.00029999,2]
[391770992,1760793044382,-184.53333602,0.00029999,2]
[391770993,1760793044395,-999.0,0.00029999,120]
[391770994,1760793044408,-500.0,0.00029999,2]
[391770995,1760793044420,-500.0,0.00029999,2]
[391770996,1760793044433,-500.0,0.00029999,2]
[391770997,1760793044446,-500.0,0.00029999,2]